[Event "Titled Tuesday Blitz July 18 Early 2023"]
[White "Becerra, Juan David"]
[Black "Weetik, Vjacheslav"]
[WhiteFideId "4404998"]
[BlackFideId "4153472"]
[WhiteElo "2568"]
[BlackElo "2749"]
[Result "0-1"]
[Round "5"]
[TimeControl "180+2"]
[Date "2023.07.18"]
[WhiteClock "0:00:00"]
[BlackClock "0:00:10"]
[Board "65"]

1. e4 {[%clk 0:03:00]}  c6 {[%clk 0:03:00]} 2. c4 {[%clk 0:02:51]}  e5 {[%clk 0:02:59]} 3. Nc3 {[%clk 0:02:50]}  d6 {[%clk 0:02:57]} 4. Nge2 {[%clk 0:02:39]}  c5 {[%clk 0:02:37]} 5. Nd5 {[%clk 0:02:34]}  Nc6 {[%clk 0:02:35]} 6. Nec3 {[%clk 0:02:34]}  Nd4 {[%clk 0:02:34]} 7. Nb5 {[%clk 0:02:23]}  Nxb5 {[%clk 0:02:28]} 8. cxb5 {[%clk 0:02:24]}  Nf6 {[%clk 0:02:25]} 9. Nxf6+ {[%clk 0:02:07]}  Qxf6 {[%clk 0:02:21]} 10. Bc4 {[%clk 0:02:07]}  Qg6 {[%clk 0:02:16]} 11. O-O {[%clk 0:01:52]}  Qxe4 {[%clk 0:02:01]} 12. d3 {[%clk 0:01:51]}  Qg6 {[%clk 0:01:59]} 13. f4 {[%clk 0:01:50]}  Be7 {[%clk 0:01:11]} 14. fxe5 {[%clk 0:01:23]}  O-O {[%clk 0:01:04]} 15. Bf4 {[%clk 0:01:21]}  dxe5 {[%clk 0:00:57]} 16. Bxe5 {[%clk 0:01:21]}  Be6 {[%clk 0:00:58]} 17. Qf3 {[%clk 0:01:18]}  b6 {[%clk 0:00:48]} 18. Rae1 {[%clk 0:00:44]}  Bh4 {[%clk 0:00:48]} 19. g3 {[%clk 0:00:34]}  Rae8 {[%clk 0:00:42]} 20. Bf4 {[%clk 0:00:13]}  Bf6 {[%clk 0:00:35]} 21. Kg2 {[%clk 0:00:10]}  Bxb2 {[%clk 0:00:31]} 22. Bd6 {[%clk 0:00:09]}  Bxc4 {[%clk 0:00:19]} 23. Bxf8 {[%clk 0:00:08]}  Bxb5 {[%clk 0:00:17]} 24. Rxe8 {[%clk 0:00:06]}  Bxe8 {[%clk 0:00:18]} 25. Qf2 {[%clk 0:00:05]}  Bd4 {[%clk 0:00:11]} 26. Qf5 {[%clk 0:00:02]}  Qxf5 {[%clk 0:00:09]} 27. Rxf5 {[%clk 0:00:00]}  Kxf8 {[%clk 0:00:10]} 0-1


[Site "https://www.chess.com"]

[Event "Titled Tuesday Blitz July 18 Early 2023"]
[White "Kashlinskaya, Alina"]
[Black "Xu, Yi"]
[WhiteFideId "4198026"]
[BlackFideId "8605564"]
[WhiteElo "2580"]
[BlackElo "2734"]
[Result "0-1"]
[Round "5"]
[TimeControl "180+2"]
[Date "2023.07.18"]
[WhiteClock "0:02:07"]
[BlackClock "0:02:26"]
[Board "66"]

1. d4 {[%clk 0:02:53]}  Nf6 {[%clk 0:02:59]} 2. c4 {[%clk 0:02:53]}  e6 {[%clk 0:02:59]} 3. Nc3 {[%clk 0:02:50]}  Bb4 {[%clk 0:02:59]} 4. a3 {[%clk 0:02:50]}  Bxc3+ {[%clk 0:02:58]} 5. bxc3 {[%clk 0:02:51]}  O-O {[%clk 0:02:58]} 6. e3 {[%clk 0:02:51]}  b6 {[%clk 0:02:57]} 7. Bd3 {[%clk 0:02:52]}  Bb7 {[%clk 0:02:56]} 8. f3 {[%clk 0:02:51]}  d6 {[%clk 0:02:54]} 9. e4 {[%clk 0:02:51]}  e5 {[%clk 0:02:52]} 10. Ne2 {[%clk 0:02:51]}  Nc6 {[%clk 0:02:52]} 11. Bg5 {[%clk 0:02:46]}  h6 {[%clk 0:02:49]} 12. Be3 {[%clk 0:02:45]}  Na5 {[%clk 0:02:47]} 13. Ng3 {[%clk 0:02:43]}  c5 {[%clk 0:02:44]} 14. d5 {[%clk 0:02:37]}  Bc8 {[%clk 0:02:43]} 15. Qd2 {[%clk 0:02:28]}  Nb3 {[%clk 0:02:38]} 16. Qb2 {[%clk 0:02:27]}  Nxa1 {[%clk 0:02:39]} 17. Qxa1 {[%clk 0:02:27]}  Nh7 {[%clk 0:02:32]} 18. h4 {[%clk 0:02:24]}  Qe7 {[%clk 0:02:29]} 19. Qc1 {[%clk 0:02:23]}  Bd7 {[%clk 0:02:29]} 20. Nh5 {[%clk 0:02:23]}  f5 {[%clk 0:02:26]} 21. Qc2 {[%clk 0:02:11]}  f4 {[%clk 0:02:26]} 22. Bf2 {[%clk 0:02:07]}  g6 {[%clk 0:02:26]} 0-1


[Site "https://www.chess.com"]

[Event "Titled Tuesday Blitz July 18 Early 2023"]
[White "Ashraf, Artin"]
[Black "Moskvin, Anatoly"]
[WhiteFideId "22514805"]
[BlackFideId "24199990"]
[WhiteElo "2728"]
[BlackElo "2559"]
[Result "1-0"]
[Round "5"]
[TimeControl "180+2"]
[Date "2023.07.18"]
[WhiteClock "0:01:05"]
[BlackClock "0:00:06"]
[Board "67"]

1. Nf3 {[%clk 0:02:41]}  g6 {[%clk 0:02:59]} 2. d4 {[%clk 0:02:41]}  Bg7 {[%clk 0:03:00]} 3. c4 {[%clk 0:02:42]}  c6 {[%clk 0:03:00]} 4. Nc3 {[%clk 0:02:42]}  d5 {[%clk 0:02:59]} 5. e3 {[%clk 0:02:43]}  Nf6 {[%clk 0:02:59]} 6. Qb3 {[%clk 0:02:43]}  O-O {[%clk 0:02:58]} 7. Bd2 {[%clk 0:02:34]}  dxc4 {[%clk 0:02:45]} 8. Bxc4 {[%clk 0:02:33]}  b5 {[%clk 0:02:46]} 9. Be2 {[%clk 0:02:32]}  Be6 {[%clk 0:02:45]} 10. Qc2 {[%clk 0:02:31]}  Na6 {[%clk 0:02:38]} 11. O-O {[%clk 0:02:30]}  Nb4 {[%clk 0:02:34]} 12. Qb1 {[%clk 0:02:29]}  a5 {[%clk 0:02:05]} 13. Rc1 {[%clk 0:02:26]}  Qb6 {[%clk 0:02:03]} 14. a3 {[%clk 0:02:25]}  Nbd5 {[%clk 0:02:02]} 15. Bd3 {[%clk 0:02:22]}  Rfc8 {[%clk 0:01:57]} 16. Nxd5 {[%clk 0:02:20]}  cxd5 {[%clk 0:01:49]} 17. Ng5 {[%clk 0:02:20]}  Bd7 {[%clk 0:01:45]} 18. b4 {[%clk 0:02:19]}  Rxc1+ {[%clk 0:01:34]} 19. Qxc1 {[%clk 0:02:16]}  Rc8 {[%clk 0:01:30]} 20. Qb2 {[%clk 0:01:58]}  a4 {[%clk 0:01:31]} 21. Rc1 {[%clk 0:01:57]}  h6 {[%clk 0:00:58]} 22. Nf3 {[%clk 0:01:56]}  Ne4 {[%clk 0:00:52]} 23. Ne5 {[%clk 0:01:52]}  Bxe5 {[%clk 0:00:46]} 24. dxe5 {[%clk 0:01:53]}  Rxc1+ {[%clk 0:00:39]} 25. Bxc1 {[%clk 0:01:51]}  Qc6 {[%clk 0:00:39]} 26. f3 {[%clk 0:01:49]}  Ng5 {[%clk 0:00:34]} 27. Qd2 {[%clk 0:01:47]}  Bf5 {[%clk 0:00:28]} 28. Bf1 {[%clk 0:01:43]}  Ne6 {[%clk 0:00:21]} 29. Bb2 {[%clk 0:01:38]}  Bc2 {[%clk 0:00:18]} 30. Bxb5 {[%clk 0:01:35]}  Qxb5 {[%clk 0:00:19]} 31. Qxc2 {[%clk 0:01:36]}  h5 {[%clk 0:00:19]} 32. Kf2 {[%clk 0:01:30]}  Qb6 {[%clk 0:00:18]} 33. Qc8+ {[%clk 0:01:27]}  Kg7 {[%clk 0:00:15]} 34. Qd7 {[%clk 0:01:27]}  Qc7 {[%clk 0:00:10]} 35. Qxc7 {[%clk 0:01:24]}  Nxc7 {[%clk 0:00:11]} 36. e4 {[%clk 0:01:23]}  dxe4 {[%clk 0:00:11]} 37. fxe4 {[%clk 0:01:24]}  Kf8 {[%clk 0:00:04]} 38. Ke3 {[%clk 0:01:17]}  Ke8 {[%clk 0:00:05]} 39. Kd4 {[%clk 0:01:15]}  Ne6+ {[%clk 0:00:01]} 40. Kc4 {[%clk 0:01:13]}  Nf4 {[%clk 0:00:02]} 41. g3 {[%clk 0:01:13]}  Ne2 {[%clk 0:00:02]} 42. Kb5 {[%clk 0:01:11]}  g5 {[%clk 0:00:02]} 43. Kxa4 {[%clk 0:01:06]}  h4 {[%clk 0:00:03]} 44. gxh4 {[%clk 0:01:04]}  gxh4 {[%clk 0:00:04]} 45. b5 {[%clk 0:01:04]}  h3 {[%clk 0:00:04]} 46. Kb4 {[%clk 0:01:03]}  Kd7 {[%clk 0:00:05]} 47. a4 {[%clk 0:01:03]}  Ng3 {[%clk 0:00:05]} 48. a5 {[%clk 0:01:02]}  Nf1 {[%clk 0:00:05]} 49. a6 {[%clk 0:01:02]}  Nxh2 {[%clk 0:00:06]} 50. a7 {[%clk 0:01:02]}  Ng4 {[%clk 0:00:07]} 51. a8=Q {[%clk 0:01:02]}  h2 {[%clk 0:00:06]} 52. Qc6+ {[%clk 0:01:03]}  Kd8 {[%clk 0:00:07]} 53. Bd4 {[%clk 0:01:04]}  h1=Q {[%clk 0:00:06]} 54. Bb6# {[%clk 0:01:05]} 1-0


[Site "https://www.chess.com"]

[Event "Titled Tuesday Blitz July 18 Early 2023"]
[White "Stoyanov, Tsvetan"]
[Black "Der_Balak_3Halak"]
[WhiteFideId "2917173"]
[WhiteElo "2718"]
[BlackElo "2532"]
[Result "1-0"]
[Round "5"]
[TimeControl "180+2"]
[Date "2023.07.18"]
[WhiteClock "0:01:59"]
[BlackClock "0:01:17"]
[Board "69"]

1. b3 {[%clk 0:03:00]}  d6 {[%clk 0:02:55]} 2. Bb2 {[%clk 0:03:00]}  e5 {[%clk 0:02:55]} 3. Nf3 {[%clk 0:03:00]}  g6 {[%clk 0:02:55]} 4. d4 {[%clk 0:03:00]}  f6 {[%clk 0:02:38]} 5. dxe5 {[%clk 0:02:57]}  Bg7 {[%clk 0:02:23]} 6. exd6 {[%clk 0:02:54]}  cxd6 {[%clk 0:02:22]} 7. e4 {[%clk 0:02:53]}  Ne7 {[%clk 0:02:21]} 8. Bc4 {[%clk 0:02:53]}  a6 {[%clk 0:02:19]} 9. a4 {[%clk 0:02:52]}  Nbc6 {[%clk 0:02:11]} 10. O-O {[%clk 0:02:51]}  Ne5 {[%clk 0:02:09]} 11. Nxe5 {[%clk 0:02:48]}  fxe5 {[%clk 0:02:09]} 12. Nc3 {[%clk 0:02:38]}  Rb8 {[%clk 0:01:55]} 13. Ba3 {[%clk 0:02:37]}  b5 {[%clk 0:01:53]} 14. axb5 {[%clk 0:02:37]}  axb5 {[%clk 0:01:54]} 15. Nxb5 {[%clk 0:02:34]}  d5 {[%clk 0:01:37]} 16. Nd6+ {[%clk 0:02:16]}  Kf8 {[%clk 0:01:36]} 17. Qf3+ {[%clk 0:02:15]}  Bf5 {[%clk 0:01:31]} 18. exf5 {[%clk 0:02:06]}  e4 {[%clk 0:01:25]} 19. Qf4 {[%clk 0:02:06]}  g5 {[%clk 0:01:19]} 20. Qxg5 {[%clk 0:02:04]}  h6 {[%clk 0:01:19]} 21. Qh5 {[%clk 0:02:00]}  Bxa1 {[%clk 0:01:17]} 22. Qf7# {[%clk 0:01:59]} 1-0


[Site "https://www.chess.com"]

[Event "Titled Tuesday Blitz July 18 Early 2023"]
[White "Mortazavi, Ali"]
[Black "Dimitrov, Atanas"]
[WhiteFideId "401323"]
[BlackFideId "2901315"]
[WhiteElo "2526"]
[BlackElo "2683"]
[Result "0-1"]
[Round "5"]
[TimeControl "180+2"]
[Date "2023.07.18"]
[WhiteClock "0:00:00"]
[BlackClock "0:00:27"]
[Board "70"]

1. Nf3 {[%clk 0:03:00]}  d5 {[%clk 0:03:00]} 2. g3 {[%clk 0:03:01]}  Nf6 {[%clk 0:03:00]} 3. Bg2 {[%clk 0:03:01]}  g6 {[%clk 0:03:01]} 4. O-O {[%clk 0:03:02]}  c5 {[%clk 0:03:01]} 5. d3 {[%clk 0:03:03]}  Bg7 {[%clk 0:03:02]} 6. Nbd2 {[%clk 0:03:04]}  Nc6 {[%clk 0:03:02]} 7. e3 {[%clk 0:03:03]}  O-O {[%clk 0:03:02]} 8. e4 {[%clk 0:03:04]}  e5 {[%clk 0:03:00]} 9. c3 {[%clk 0:03:04]}  d4 {[%clk 0:03:00]} 10. cxd4 {[%clk 0:03:02]}  cxd4 {[%clk 0:02:58]} 11. Nc4 {[%clk 0:03:02]}  Nd7 {[%clk 0:02:54]} 12. Nd6 {[%clk 0:03:01]}  Qe7 {[%clk 0:02:51]} 13. Nxc8 {[%clk 0:03:00]}  Raxc8 {[%clk 0:02:52]} 14. Bd2 {[%clk 0:02:56]}  Nc5 {[%clk 0:02:50]} 15. Ne1 {[%clk 0:02:56]}  Qc7 {[%clk 0:02:28]} 16. b4 {[%clk 0:02:50]}  Ne6 {[%clk 0:02:28]} 17. Qb3 {[%clk 0:02:46]}  a5 {[%clk 0:02:25]} 18. a3 {[%clk 0:02:42]}  axb4 {[%clk 0:02:25]} 19. axb4 {[%clk 0:02:42]}  Qb6 {[%clk 0:02:26]} 20. f4 {[%clk 0:02:24]}  exf4 {[%clk 0:02:20]} 21. gxf4 {[%clk 0:02:25]}  Nc7 {[%clk 0:01:49]} 22. e5 {[%clk 0:01:53]}  Nb5 {[%clk 0:01:47]} 23. Kh1 {[%clk 0:01:41]}  Nc3 {[%clk 0:01:46]} 24. Bxc3 {[%clk 0:01:22]}  dxc3 {[%clk 0:01:46]} 25. Qxc3 {[%clk 0:01:22]}  Nxe5 {[%clk 0:01:39]} 26. Qd2 {[%clk 0:01:10]}  Ng4 {[%clk 0:01:27]} 27. Rb1 {[%clk 0:01:10]}  Ne3 {[%clk 0:01:25]} 28. Rf3 {[%clk 0:01:11]}  Rfe8 {[%clk 0:01:23]} 29. f5 {[%clk 0:00:37]}  Nxf5 {[%clk 0:01:17]} 30. Rh3 {[%clk 0:00:28]}  Ne3 {[%clk 0:01:13]} 31. Be4 {[%clk 0:00:27]}  Ng4 {[%clk 0:01:01]} 32. Rf3 {[%clk 0:00:22]}  Ne5 {[%clk 0:00:58]} 33. Rf1 {[%clk 0:00:18]}  Rcd8 {[%clk 0:00:57]} 34. Qg2 {[%clk 0:00:17]}  Re7 {[%clk 0:00:55]} 35. Nf3 {[%clk 0:00:12]}  Nxf3 {[%clk 0:00:52]} 36. Rxf3 {[%clk 0:00:11]}  f5 {[%clk 0:00:48]} 37. Qa2+ {[%clk 0:00:05]}  Kh8 {[%clk 0:00:44]} 38. Bd5 {[%clk 0:00:05]}  Qd6 {[%clk 0:00:41]} 39. Bc4 {[%clk 0:00:05]}  Qc6 {[%clk 0:00:42]} 40. Qg2 {[%clk 0:00:05]}  b5 {[%clk 0:00:39]} 41. Ba2 {[%clk 0:00:04]}  Rde8 {[%clk 0:00:35]} 42. Rbf1 {[%clk 0:00:03]}  Re2 {[%clk 0:00:34]} 43. R3f2 {[%clk 0:00:03]}  Qxg2+ {[%clk 0:00:30]} 44. Kxg2 {[%clk 0:00:03]}  R2e3 {[%clk 0:00:31]} 45. Rf3 {[%clk 0:00:03]}  Bd4 {[%clk 0:00:29]} 46. Rxe3 {[%clk 0:00:02]}  Rxe3 {[%clk 0:00:30]} 47. Bb1 {[%clk 0:00:03]}  Kg7 {[%clk 0:00:28]} 48. Rf2 {[%clk 0:00:02]}  Re1 {[%clk 0:00:27]} 49. Ra2 {[%clk 0:00:00]}  Rxb1 {[%clk 0:00:27]} 0-1


[Site "https://www.chess.com"]

[Event "Titled Tuesday Blitz July 18 Early 2023"]
[White "Zaim, Marian"]
[Black "Kuzhilniy, Oleksandr"]
[WhiteFideId "1204114"]
[BlackFideId "34110500"]
[WhiteElo "2319"]
[BlackElo "2631"]
[Result "0-1"]
[Round "5"]
[TimeControl "180+2"]
[Date "2023.07.18"]
[WhiteClock "0:00:48"]
[BlackClock "0:00:47"]
[Board "75"]

1. d4 {[%clk 0:02:57]}  Nf6 {[%clk 0:02:59]} 2. c4 {[%clk 0:02:56]}  e5 {[%clk 0:02:59]} 3. dxe5 {[%clk 0:02:56]}  Ng4 {[%clk 0:03:00]} 4. g3 {[%clk 0:02:55]}  Nxe5 {[%clk 0:02:59]} 5. Bg2 {[%clk 0:02:51]}  Nxc4 {[%clk 0:02:55]} 6. Nf3 {[%clk 0:02:51]}  d5 {[%clk 0:02:54]} 7. O-O {[%clk 0:02:51]}  Be7 {[%clk 0:02:52]} 8. b3 {[%clk 0:02:49]}  Nb6 {[%clk 0:02:48]} 9. Bb2 {[%clk 0:02:49]}  O-O {[%clk 0:02:48]} 10. Nc3 {[%clk 0:02:47]}  Bf6 {[%clk 0:02:47]} 11. Qd2 {[%clk 0:02:44]}  c6 {[%clk 0:02:44]} 12. Rae1 {[%clk 0:02:38]}  Bf5 {[%clk 0:02:32]} 13. Nd4 {[%clk 0:02:34]}  Bg6 {[%clk 0:02:30]} 14. h4 {[%clk 0:02:27]}  N8d7 {[%clk 0:02:26]} 15. e4 {[%clk 0:02:27]}  dxe4 {[%clk 0:02:23]} 16. Nxe4 {[%clk 0:02:27]}  Bxe4 {[%clk 0:02:23]} 17. Bxe4 {[%clk 0:02:23]}  Nc5 {[%clk 0:02:22]} 18. Bg2 {[%clk 0:02:13]}  Qd7 {[%clk 0:02:14]} 19. Rd1 {[%clk 0:02:09]}  Rad8 {[%clk 0:02:10]} 20. Qa5 {[%clk 0:02:01]}  Ne6 {[%clk 0:01:25]} 21. Nxe6 {[%clk 0:02:00]}  Qxe6 {[%clk 0:01:25]} 22. Bxf6 {[%clk 0:01:55]}  Qxf6 {[%clk 0:01:25]} 23. Qxa7 {[%clk 0:01:55]}  Nd7 {[%clk 0:01:13]} 24. Qxb7 {[%clk 0:01:54]}  Ne5 {[%clk 0:01:14]} 25. Kh1 {[%clk 0:01:28]}  Rxd1 {[%clk 0:01:09]} 26. Rxd1 {[%clk 0:01:27]}  Qxf2 {[%clk 0:01:10]} 27. Bxc6 {[%clk 0:01:03]}  Qxg3 {[%clk 0:01:04]} 28. Bg2 {[%clk 0:00:59]}  Ng4 {[%clk 0:00:59]} 29. Kg1 {[%clk 0:00:53]}  Qf2+ {[%clk 0:00:58]} 30. Kh1 {[%clk 0:00:53]}  Qxh4+ {[%clk 0:00:56]} 31. Kg1 {[%clk 0:00:53]}  Qh2+ {[%clk 0:00:52]} 32. Kf1 {[%clk 0:00:53]}  Ne3+ {[%clk 0:00:52]} 33. Ke2 {[%clk 0:00:48]}  Nxg2 {[%clk 0:00:47]} 0-1


[Site "https://www.chess.com"]

[Event "Titled Tuesday Blitz July 18 Early 2023"]
[White "demon64fields"]
[Black "Shapiro, Daniel"]
[BlackFideId "2001780"]
[WhiteElo "2884"]
[BlackElo "2334"]
[Result "1-0"]
[Round "5"]
[TimeControl "180+2"]
[Date "2023.07.18"]
[WhiteClock "0:01:22"]
[BlackClock "0:00:00"]
[Board "76"]

1. a3 {[%clk 0:02:58]}  c5 {[%clk 0:02:56]} 2. b4 {[%clk 0:02:58]}  b6 {[%clk 0:02:52]} 3. Bb2 {[%clk 0:02:58]}  Nf6 {[%clk 0:02:50]} 4. Nf3 {[%clk 0:02:58]}  Bb7 {[%clk 0:02:50]} 5. e3 {[%clk 0:02:58]}  e6 {[%clk 0:02:51]} 6. b5 {[%clk 0:02:56]}  Be7 {[%clk 0:02:44]} 7. Be2 {[%clk 0:02:55]}  O-O {[%clk 0:02:44]} 8. d3 {[%clk 0:02:56]}  d6 {[%clk 0:02:42]} 9. Nbd2 {[%clk 0:02:56]}  Nbd7 {[%clk 0:02:40]} 10. a4 {[%clk 0:02:56]}  a5 {[%clk 0:02:22]} 11. g4 {[%clk 0:02:56]}  Nxg4 {[%clk 0:02:14]} 12. Rg1 {[%clk 0:02:56]}  Ngf6 {[%clk 0:02:13]} 13. Ne4 {[%clk 0:02:55]}  e5 {[%clk 0:02:10]} 14. Ng3 {[%clk 0:02:52]}  Re8 {[%clk 0:01:52]} 15. c4 {[%clk 0:02:51]}  Bf8 {[%clk 0:01:48]} 16. Qc2 {[%clk 0:02:51]}  d5 {[%clk 0:01:44]} 17. O-O-O {[%clk 0:02:43]}  d4 {[%clk 0:01:37]} 18. e4 {[%clk 0:02:44]}  g6 {[%clk 0:01:33]} 19. h4 {[%clk 0:02:43]}  Bh6+ {[%clk 0:01:33]} 20. Kb1 {[%clk 0:02:43]}  Bf4 {[%clk 0:01:29]} 21. h5 {[%clk 0:02:38]}  Kf8 {[%clk 0:01:17]} 22. hxg6 {[%clk 0:02:36]}  hxg6 {[%clk 0:01:17]} 23. Bc1 {[%clk 0:02:36]}  Bxc1 {[%clk 0:01:12]} 24. Qxc1 {[%clk 0:02:36]}  Ke7 {[%clk 0:01:11]} 25. Qg5 {[%clk 0:02:36]}  Kd6 {[%clk 0:01:09]} 26. Rh1 {[%clk 0:02:32]}  Rh8 {[%clk 0:01:08]} 27. Kc2 {[%clk 0:02:23]}  Qe7 {[%clk 0:01:08]} 28. Rh4 {[%clk 0:02:13]}  Rxh4 {[%clk 0:00:52]} 29. Nxh4 {[%clk 0:02:13]}  Kc7 {[%clk 0:00:50]} 30. f4 {[%clk 0:01:59]}  exf4 {[%clk 0:00:35]} 31. Qxf4+ {[%clk 0:02:00]}  Qe5 {[%clk 0:00:34]} 32. Qxe5+ {[%clk 0:01:56]}  Nxe5 {[%clk 0:00:33]} 33. Rf1 {[%clk 0:01:57]}  Nfd7 {[%clk 0:00:28]} 34. Nf3 {[%clk 0:01:56]}  Rh8 {[%clk 0:00:26]} 35. Ng5 {[%clk 0:01:53]}  f6 {[%clk 0:00:19]} 36. Nf3 {[%clk 0:01:53]}  Kd6 {[%clk 0:00:16]} 37. Nxe5 {[%clk 0:01:43]}  Kxe5 {[%clk 0:00:16]} 38. Bg4 {[%clk 0:01:44]}  Nf8 {[%clk 0:00:14]} 39. Ne2 {[%clk 0:01:39]}  Ne6 {[%clk 0:00:13]} 40. Bxe6 {[%clk 0:01:39]}  Kxe6 {[%clk 0:00:13]} 41. Nf4+ {[%clk 0:01:39]}  Kf7 {[%clk 0:00:13]} 42. Nd5 {[%clk 0:01:36]}  Bxd5 {[%clk 0:00:12]} 43. cxd5 {[%clk 0:01:37]}  Rh2+ {[%clk 0:00:13]} 44. Kb3 {[%clk 0:01:35]}  Rd2 {[%clk 0:00:13]} 45. Rf3 {[%clk 0:01:31]}  Ke7 {[%clk 0:00:12]} 46. d6+ {[%clk 0:01:29]}  Kxd6 {[%clk 0:00:12]} 47. Rxf6+ {[%clk 0:01:29]}  Kc7 {[%clk 0:00:12]} 48. Kc4 {[%clk 0:01:29]}  Ra2 {[%clk 0:00:09]} 49. Rc6+ {[%clk 0:01:27]}  Kb7 {[%clk 0:00:08]} 50. Rxg6 {[%clk 0:01:28]}  Rxa4+ {[%clk 0:00:08]} 51. Kd5 {[%clk 0:01:28]}  Ra3 {[%clk 0:00:04]} 52. Rg7+ {[%clk 0:01:29]}  Kc8 {[%clk 0:00:04]} 53. Kc6 {[%clk 0:01:30]}  Kd8 {[%clk 0:00:04]} 54. Rg8+ {[%clk 0:01:28]}  Ke7 {[%clk 0:00:03]} 55. Kxb6 {[%clk 0:01:29]}  Rxd3 {[%clk 0:00:02]} 56. Kxc5 {[%clk 0:01:29]}  Rb3 {[%clk 0:00:01]} 57. Ra8 {[%clk 0:01:22]}  d3 {[%clk 0:00:01]} 58. Rxa5 {[%clk 0:01:22]}  d2 {[%clk 0:00:01]} 59. Ra1 {[%clk 0:01:22]}  Rb2 {[%clk 0:00:00]} 60. Kc6 {[%clk 0:01:22]} 1-0


[Site "https://www.chess.com"]

[Event "Titled Tuesday Blitz July 18 Early 2023"]
[White "Horak, Martin"]
[Black "Nazari, Arad"]
[WhiteFideId "367095"]
[BlackFideId "12577324"]
[WhiteElo "2512"]
[BlackElo "2745"]
[Result "0-1"]
[Round "5"]
[TimeControl "180+2"]
[Date "2023.07.18"]
[WhiteClock "0:00:03"]
[BlackClock "0:00:09"]
[Board "79"]

1. d4 {[%clk 0:03:00]}  Nf6 {[%clk 0:02:58]} 2. Nf3 {[%clk 0:02:59]}  g6 {[%clk 0:02:59]} 3. c4 {[%clk 0:03:00]}  Bg7 {[%clk 0:02:59]} 4. e3 {[%clk 0:03:00]}  O-O {[%clk 0:02:59]} 5. Be2 {[%clk 0:03:01]}  c5 {[%clk 0:02:59]} 6. O-O {[%clk 0:02:52]}  cxd4 {[%clk 0:02:58]} 7. Nxd4 {[%clk 0:02:52]}  d5 {[%clk 0:02:59]} 8. Nc3 {[%clk 0:02:50]}  Nc6 {[%clk 0:03:00]} 9. cxd5 {[%clk 0:02:26]}  Nxd5 {[%clk 0:02:48]} 10. Nxd5 {[%clk 0:02:20]}  Qxd5 {[%clk 0:02:46]} 11. Bf3 {[%clk 0:02:20]}  Qc5 {[%clk 0:02:45]} 12. Nxc6 {[%clk 0:02:18]}  bxc6 {[%clk 0:02:46]} 13. Qa4 {[%clk 0:02:11]}  Rb8 {[%clk 0:02:43]} 14. Qxc6 {[%clk 0:01:57]}  Qxc6 {[%clk 0:02:42]} 15. Bxc6 {[%clk 0:01:58]}  Be6 {[%clk 0:02:41]} 16. Ba4 {[%clk 0:01:38]}  Bxb2 {[%clk 0:02:38]} 17. Bxb2 {[%clk 0:01:38]}  Rxb2 {[%clk 0:02:39]} 18. Bb3 {[%clk 0:01:38]}  Rd8 {[%clk 0:01:53]} 19. Bxe6 {[%clk 0:01:16]}  fxe6 {[%clk 0:01:53]} 20. a4 {[%clk 0:01:02]}  Rdd2 {[%clk 0:01:50]} 21. g3 {[%clk 0:00:53]}  Ra2 {[%clk 0:01:40]} 22. Rxa2 {[%clk 0:00:48]}  Rxa2 {[%clk 0:01:41]} 23. Rb1 {[%clk 0:00:47]}  Rxa4 {[%clk 0:01:40]} 24. Rb7 {[%clk 0:00:47]}  Kf7 {[%clk 0:01:40]} 25. Kg2 {[%clk 0:00:45]}  a5 {[%clk 0:01:38]} 26. Ra7 {[%clk 0:00:44]}  Kf6 {[%clk 0:01:39]} 27. Kf3 {[%clk 0:00:43]}  h6 {[%clk 0:01:33]} 28. h4 {[%clk 0:00:39]}  Ra1 {[%clk 0:01:27]} 29. Kf4 {[%clk 0:00:35]}  a4 {[%clk 0:01:25]} 30. Ra5 {[%clk 0:00:33]}  a3 {[%clk 0:01:24]} 31. e4 {[%clk 0:00:33]}  Kf7 {[%clk 0:01:11]} 32. Ra6 {[%clk 0:00:32]}  Kf6 {[%clk 0:01:01]} 33. e5+ {[%clk 0:00:27]}  Kf7 {[%clk 0:01:01]} 34. f3 {[%clk 0:00:27]}  a2 {[%clk 0:00:53]} 35. Ra8 {[%clk 0:00:26]}  Kg7 {[%clk 0:00:50]} 36. Kg4 {[%clk 0:00:25]}  h5+ {[%clk 0:00:47]} 37. Kf4 {[%clk 0:00:23]}  Kf7 {[%clk 0:00:47]} 38. Ra5 {[%clk 0:00:14]}  Ke8 {[%clk 0:00:48]} 39. Ra7 {[%clk 0:00:09]}  Kd8 {[%clk 0:00:47]} 40. Ra8+ {[%clk 0:00:07]}  Kd7 {[%clk 0:00:47]} 41. Ra6 {[%clk 0:00:07]}  Kc7 {[%clk 0:00:44]} 42. Kg5 {[%clk 0:00:07]}  Rg1 {[%clk 0:00:44]} 43. Rxa2 {[%clk 0:00:07]}  Rxg3+ {[%clk 0:00:44]} 44. Kf4 {[%clk 0:00:04]}  Rh3 {[%clk 0:00:34]} 45. Rg2 {[%clk 0:00:04]}  Rxh4+ {[%clk 0:00:33]} 46. Ke3 {[%clk 0:00:04]}  Kc6 {[%clk 0:00:32]} 47. Rxg6 {[%clk 0:00:04]}  Kd5 {[%clk 0:00:32]} 48. Rg7 {[%clk 0:00:05]}  Kxe5 {[%clk 0:00:28]} 49. Rxe7 {[%clk 0:00:05]}  Kf6 {[%clk 0:00:26]} 50. Rh7 {[%clk 0:00:04]}  Kg6 {[%clk 0:00:27]} 51. Rh8 {[%clk 0:00:05]}  Kg7 {[%clk 0:00:27]} 52. Re8 {[%clk 0:00:04]}  Kf7 {[%clk 0:00:28]} 53. Rh8 {[%clk 0:00:04]}  Rh2 {[%clk 0:00:28]} 54. Kf4 {[%clk 0:00:04]}  Kf6 {[%clk 0:00:25]} 55. Rf8+ {[%clk 0:00:04]}  Kg7 {[%clk 0:00:25]} 56. Re8 {[%clk 0:00:04]}  Re2 {[%clk 0:00:20]} 57. Kg5 {[%clk 0:00:04]}  Re5+ {[%clk 0:00:21]} 58. Kh4 {[%clk 0:00:05]}  Kg6 {[%clk 0:00:20]} 59. Rf8 {[%clk 0:00:04]}  Rf5 {[%clk 0:00:17]} 60. Re8 {[%clk 0:00:05]}  Kf7 {[%clk 0:00:16]} 61. Rh8 {[%clk 0:00:05]}  Rxf3 {[%clk 0:00:14]} 62. Rxh5 {[%clk 0:00:04]}  Ke7 {[%clk 0:00:15]} 63. Kg4 {[%clk 0:00:04]}  Rf1 {[%clk 0:00:15]} 64. Kg3 {[%clk 0:00:04]}  Kd6 {[%clk 0:00:15]} 65. Kg2 {[%clk 0:00:04]}  Rf8 {[%clk 0:00:16]} 66. Rh1 {[%clk 0:00:04]}  e5 {[%clk 0:00:13]} 67. Re1 {[%clk 0:00:03]}  Kd5 {[%clk 0:00:13]} 68. Rd1+ {[%clk 0:00:02]}  Ke4 {[%clk 0:00:14]} 69. Re1+ {[%clk 0:00:02]}  Kd4 {[%clk 0:00:14]} 70. Rd1+ {[%clk 0:00:03]}  Kc3 {[%clk 0:00:14]} 71. Re1 {[%clk 0:00:03]}  Kd4 {[%clk 0:00:12]} 72. Rd1+ {[%clk 0:00:02]}  Kc4 {[%clk 0:00:11]} 73. Re1 {[%clk 0:00:03]}  Kd5 {[%clk 0:00:12]} 74. Kg3 {[%clk 0:00:01]}  Rf4 {[%clk 0:00:09]} 75. Rd1+ {[%clk 0:00:01]}  Ke6 {[%clk 0:00:10]} 76. Re1 {[%clk 0:00:01]}  Rf8 {[%clk 0:00:07]} 77. Rd1 {[%clk 0:00:01]}  e4 {[%clk 0:00:07]} 78. Re1 {[%clk 0:00:02]}  Ke5 {[%clk 0:00:08]} 79. Kg2 {[%clk 0:00:02]}  Kd4 {[%clk 0:00:08]} 80. Rf1 {[%clk 0:00:03]}  Rxf1 {[%clk 0:00:08]} 81. Kxf1 {[%clk 0:00:04]}  Kd3 {[%clk 0:00:08]} 82. Ke1 {[%clk 0:00:03]}  Ke3 {[%clk 0:00:09]} 0-1


[Site "https://www.chess.com"]